bitfinex/quotes_ETHUSD_20240816
["timestamp","ask_amount","ask_price","bid_price","bid_amount"]
[1723806919512,3.82058,2617.4,2617.3,2.3707]
[1723806920672,3.82058,2617.4,2617.0,2.3875]
[1723806920673,3.82079,2617.3,2617.0,2.3875]
[1723806921371,3.82102,2617.1,2616.7,2.3875]
[1723806921712,3.82132,2616.9,2616.7,2.3875]
[1723806921915,3.82118,2617.0,2616.7,2.3875]
[1723806922227,3.82097,2617.2,2616.7,2.3875]
[1723806922428,3.82097,2617.2,2616.7,2.62625]
[1723806922744,3.82061,2617.4,2617.1,2.4727]
[1723806922949,3.82038,2617.6,2617.1,2.85127]
[1723806923130,3.8201,2617.8,2617.2,1.313]
[1723806923131,3.82009,2617.8,2617.2,1.313]
[1723806923336,3.82008,2617.8,2617.3,2.4727]
[1723806923547,3.82014,2617.7,2617.3,2.4727]
[1723806925197,3.81982,2618.0,2617.3,2.4727]
[1723806925198,3.82,2617.8,2617.3,2.54910932]
[1723806925357,3.82,2617.8,2617.3,3.32050363]
[1723806928592,7.64009,2617.8,2617.3,3.32050363]
[1723806928918,3.82,2617.8,2617.3,3.32050363]
[1723806929602,7.64009,2617.8,2617.3,3.32050363]
[1723806929803,3.82,2617.8,2617.3,3.32050363]
[1723806930919,3.81935,2618.3,2617.7,2.3256]
[1723806931122,3.81955,2618.2,2617.7,2.3256]
[1723806931332,3.81965,2618.1,2617.7,2.3256]
[1723806932279,3.81935,2618.3,2617.7,2.3256]
[1723806932427,7.63873,2618.3,2617.7,2.3256]
[1723806933035,3.81935,2618.3,2617.7,2.3256]
[1723806933395,3.81943,2618.2,2617.7,2.3256]
[1723806935332,3.81943,2618.2,2617.8,2.3467]
[1723806936294,3.81927,2618.3,2617.8,2.3467]
[1723806936631,1.313,2618.6,2617.9,2.4721]
[1723806936632,3.81898,2618.5,2617.9,2.4721]
[1723806936961,3.81891,2618.6,2618.1,2.4721]
[1723806937280,3.81891,2618.6,2618.0,1.3893855]
[1723806937281,3.81863,2618.8,2618.3,2.4721]
[1723806937541,3.81863,2618.8,2618.2,1.69914855]
[1723806937542,3.81857,2618.8,2618.5,2.323]
[1723806938633,3.81834,2619.0,2618.5,2.323]
[1723806938993,7.6361,2619.2,2618.7,2.3066]
[1723806939610,3.8181,2619.1,2618.7,2.3066]
[1723806940333,3.81827,2619.0,2618.7,2.3066]
[1723806940543,0.07615787,2618.9,2618.1,2.3823]
[1723806940851,3.81899,2618.5,2618.1,2.3823]
[1723806941426,7.63808,2618.5,2618.1,2.3823]
[1723806941611,3.81899,2618.5,2618.1,2.3823]
[1723806942814,3.81883,2618.6,2618.1,2.3823]
[1723806943509,3.81879,2618.7,2618.1,2.3823]
[1723806943510,3.81879,2618.7,2618.2,2.3828]
[1723806943721,3.81832,2619.0,2618.3,6.25322]
[1723806943945,3.8182,2619.1,2618.5,2.4341]
[1723806944237,3.81796,2619.2,2618.6,2.4341]
[1723806946353,3.81796,2619.2,2618.7,2.4202]
[1723806948709,3.81744,2619.6,2618.7,2.4202]
[1723806948710,7.63634,2619.1,2618.7,2.4202]
[1723806948912,3.81838,2619.0,2618.7,2.4202]
[1723806949147,3.81839,2618.9,2618.7,2.4202]
[1723806949806,7.63635,2619.1,2618.7,2.4202]
[1723806950021,3.81811,2619.1,2618.7,2.4202]
[1723806950206,3.81811,2619.1,2618.7,2.66222]
[1723806950403,3.81796,2619.2,2618.7,2.66222]
[1723806950608,3.81781,2619.3,2618.9,2.2994]
[1723806951322,3.81781,2619.3,2618.9,2.37575992]
[1723806951530,7.63573,2619.3,2618.9,2.2994]
[1723806951753,3.81803,2619.2,2618.9,2.2994]
[1723806951949,3.81811,2619.1,2618.9,2.2994]
[1723806952251,3.81825,2619.0,2618.9,2.2994]
[1723806953146,3.8181,2619.1,2618.9,2.2994]
[1723806953352,3.81796,2619.2,2618.9,2.2994]
[1723806954898,3.81792,2619.3,2618.9,2.2994]
[1723806955807,3.81782,2619.3,2618.9,2.2994]
[1723806956013,3.81805,2619.2,2618.9,2.2994]
[1723806956754,3.81782,2619.3,2618.9,2.2994]
[1723806958453,3.81807,2619.2,2618.9,2.2994]
[1723806960323,3.81782,2619.3,2618.9,2.2994]
[1723806960631,3.81782,2619.3,2619.0,2.4896]
[1723806960831,7.63465,2619.7,2619.1,2.4896]
[1723806961031,3.81732,2619.7,2619.2,0.07634946]
[1723806961347,3.81709,2619.8,2619.3,2.4896]
[1723806961567,3.81709,2619.8,2619.4,2.2651]
[1723806961745,3.81694,2619.9,2619.4,2.2651]
[1723806962082,7.63427,2619.8,2619.5,2.2651]
[1723806962219,7.6343,2619.8,2619.5,2.2651]
[1723806962422,3.81723,2619.7,2619.5,2.2651]
[1723806962622,3.81737,2619.6,2619.5,2.2651]
[1723806963133,3.81724,2619.7,2619.5,2.2651]
[1723806963762,3.8173,2619.7,2619.5,2.2651]
[1723806965022,3.81737,2619.6,2619.5,2.2651]
[1723806966879,7.63474,2619.6,2619.5,2.2651]
[1723806967077,7.63562,2619.3,2619.2,19.79]
[1723806967362,3.81839,2618.9,2618.8,2.484]
[1723806968324,3.81835,2619.0,2618.8,2.484]
[1723806969576,7.63613,2619.2,2618.8,2.484]
[1723806969728,3.81803,2619.2,2618.8,2.484]
[1723806969930,3.81817,2619.1,2618.9,0.2484]
[1723806970127,3.81825,2619.0,2618.8,2.484]
[1723806970793,7.63612,2619.2,2618.8,2.484]
[1723806970924,3.81813,2619.1,2618.8,2.484]
[1723806971129,3.81813,2619.1,2618.8,2.7324]
[1723806971841,3.81803,2619.2,2618.8,2.7324]
[1723806972043,7.6361,2619.2,2618.8,2.7324]
[1723806972236,3.81815,2619.1,2618.8,2.7324]
[1723806972432,3.81815,2619.1,2618.8,2.484]
[1723806973143,3.81795,2619.3,2618.8,2.484]
[1723806973655,3.81777,2619.4,2618.8,2.484]
[1723806973864,3.81777,2619.4,2618.9,2.472]
[1723806974190,3.81783,2619.3,2619.1,2.3083]
[1723806974330,3.81777,2619.4,2619.1,2.3083]
[1723806974536,7.63555,2619.4,2619.1,2.3083]
[1723806975151,3.81782,2619.3,2619.1,2.3083]
[1723806976584,3.81767,2619.4,2619.1,2.3083]
[1723806977391,3.81767,2619.4,2619.1,2.53913]
[1723806977889,3.81724,2619.7,2619.2,2.3498]
[1723806978050,3.81753,2619.5,2619.2,2.607863]
[1723806978667,3.81753,2619.5,2619.2,2.3498]
[1723806978991,3.81781,2619.3,2619.2,2.3498]
[1723806980970,7.63541,2619.4,2619.2,2.3498]
[1723806981406,7.63542,2619.4,2619.2,2.3498]
[1723806981556,3.81767,2619.4,2619.2,2.3498]
[1723806982674,3.81747,2619.6,2619.2,4.56378]
[1723806982881,3.81723,2619.7,2619.3,2.4105]
[1723806983193,3.8173,2619.7,2619.3,2.4105]
[1723806984383,7.6346,2619.7,2619.3,2.872948]
[1723806984682,3.81711,2619.8,2619.3,2.872948]
[1723806985246,3.81723,2619.7,2619.3,2.872948]
[1723806986482,3.81723,2619.7,2619.5,2.2895]
[1723806986642,3.81703,2619.9,2619.5,2.2895]
[1723806986837,3.81679,2620.0,2619.5,2.2895]
[1723806987060,3.81679,2620.0,2619.6,0.27681069]
[1723806987254,3.81695,2619.9,2619.6,0.27681069]
[1723806988478,3.81674,2620.1,2619.6,0.27681069]
[1723806988479,3.81683,2620.0,2619.6,0.27681069]
[1723806990690,3.81674,2620.1,2619.6,0.27681069]
[1723806990880,3.81674,2620.1,2619.7,2.2635]
[1723806991051,3.81674,2620.1,2619.7,4.66311731]
[1723806992566,3.81645,2620.3,2619.8,2.3333]
[1723806992771,7.63293,2620.3,2619.8,2.3333]
[1723806993788,3.81643,2620.3,2619.8,2.3333]
[1723806993988,3.81653,2620.2,2619.8,2.3333]
[1723806995598,0.763296,2620.2,2619.8,2.3333]
[1723806995900,0.07615787,2620.4,2619.8,2.3333]
[1723806996216,3.81675,2620.1,2619.8,2.3333]
[1723806996419,3.81679,2620.0,2619.8,2.3333]
[1723807015286,5.12765,2620.1,2619.8,2.3333]
[1723807017026,3.8168,2620.0,2619.8,2.3333]
[1723807017620,4.41525591,2620.0,2619.8,2.3333]
[1723807018410,3.81776,2619.4,2619.1,2.2635]
[1723807018733,5.12876,2619.4,2619.1,2.2635]
[1723807018935,3.81776,2619.4,2619.1,2.2635]
[1723807019230,3.81776,2619.4,2618.4,2.4732]
[1723807019231,3.81876,2618.7,2618.4,2.4732]
[1723807019415,3.81848,2618.9,2618.4,22.2632]
[1723807019591,3.81848,2618.9,2618.5,0.24732]
[1723807019929,3.81868,2618.7,2618.4,22.2632]
[1723807021118,3.81884,2618.6,2618.4,22.2632]
[1723807021465,3.81928,2618.3,2618.1,2.4857]
[1723807022603,7.6382,2618.5,2618.1,2.4857]
[1723807022811,3.81847,2618.9,2618.2,3.81927]
[1723807023134,3.81847,2618.9,2618.3,2.3942]
[1723807023427,3.81818,2619.1,2618.4,6.21332]
[1723807023589,7.6364,2619.1,2618.4,7.216601]
[1723807023800,3.81818,2619.1,2618.4,7.216601]
[1723807023989,3.81789,2619.3,2618.7,3.81868]
[1723807024230,3.81789,2619.3,2618.7,23.60868]
[1723807024794,3.81789,2619.3,2618.7,19.79]
[1723807025011,3.81789,2619.3,2618.8,35.0]
[1723807025232,3.81789,2619.3,2618.9,1.003281]
[1723807026041,3.8181,2619.1,2618.8,35.0]
[1723807027033,3.8181,2619.1,2618.7,19.79]
[1723807027340,7.63583,2619.3,2618.7,19.79]
[1723807027544,3.81796,2619.2,2618.8,2.21215]
[1723807027705,3.81788,2619.3,2618.8,2.21215]
[1723807027909,7.63583,2619.3,2618.8,2.21215]
[1723807028130,3.81788,2619.3,2618.8,2.21215]
[1723807028331,7.63582,2619.3,2618.8,2.21215]
[1723807028497,7.63582,2619.3,2618.9,0.94288488]
[1723807029210,7.63577,2619.3,2618.9,0.94288488]
[1723807030360,3.81796,2619.2,2618.9,0.94288488]
[1723807031567,3.81788,2619.3,2618.9,0.94288488]
[1723807031771,3.81788,2619.3,2619.0,2.07328849]
[1723807032050,3.81788,2619.3,2619.1,2.2544]
[1723807032253,3.81731,2619.7,2619.1,2.2544]
[1723807032557,3.81731,2619.7,2619.2,0.81458785]
[1723807032757,3.81739,2619.6,2619.1,37.2544]
[1723807032978,3.81739,2619.6,2619.1,2.2544]
[1723807034365,3.81753,2619.5,2619.1,2.2544]
[1723807034745,7.63517,2619.5,2619.1,2.2544]
[1723807034940,3.81753,2619.5,2619.1,2.2544]
[1723807037069,7.63465,2619.7,2619.1,2.2544]
[1723807037367,3.8174,2619.6,2619.1,2.2544]
[1723807037532,3.8174,2619.6,2619.1,22.0444]
[1723807037933,3.8174,2619.6,2619.1,57.0444]
[1723807040137,3.8174,2619.6,2619.1,22.0444]
[1723807041335,3.81754,2619.5,2619.1,22.0444]
[1723807041670,3.81789,2619.3,2619.1,19.79]
[1723807041848,3.81795,2619.2,2619.1,19.79]
[1723807042459,7.6359,2619.2,2619.1,19.79]
[1723807042663,8.40710579,2619.2,2619.1,19.79]
[1723807043637,3.81831,2619.0,2618.5,2.4956]
[1723807044296,4.58915579,2619.2,2618.5,6.31446]
[1723807044297,3.81795,2619.2,2618.5,6.31446]
[1723807044499,3.81795,2619.2,2618.6,2.478]
[1723807044839,3.81781,2619.3,2618.6,6.2967]
[1723807045160,3.81776,2619.4,2618.8,2.4342]
[1723807045807,3.81756,2619.5,2618.8,2.4342]
[1723807046023,3.81756,2619.5,2618.9,6.30328]
[1723807046172,3.81756,2619.5,2619.0,0.630328]
[1723807046372,3.81737,2619.6,2619.1,2.3201]
[1723807047677,3.81725,2619.7,2619.1,2.3201]
[1723807047877,3.81725,2619.7,2619.2,0.2950428]
[1723807048124,3.81738,2619.6,2619.2,0.2950428]
[1723807048620,3.81752,2619.5,2619.2,0.2950428]
[1723807048822,3.81752,2619.5,2619.1,2.3201]
[1723807049408,3.81767,2619.4,2619.1,2.3201]
[1723807049631,3.81767,2619.4,2619.1,22.1101]
[1723807049851,3.81752,2619.5,2619.1,22.1101]
[1723807051204,3.81752,2619.5,2619.2,2.21101]
[1723807051639,3.81739,2619.6,2619.2,2.21101]
[1723807053149,7.63467,2619.7,2619.3,2.3515]
[1723807053322,3.81731,2619.7,2619.3,3.29552488]
[1723807053779,2.4023,2620.3,2619.3,0.94402488]
[1723807054072,2.4023,2620.3,2618.9,3.15]
[1723807054073,3.81645,2620.3,2619.7,2.3074]
[1723807054205,3.81666,2620.1,2619.8,0.612474]
[1723807054517,3.81666,2620.1,2619.7,2.3074]
[1723807056121,3.81679,2620.0,2619.7,2.3074]
[1723807057269,3.81753,2619.5,2618.9,2.3229]
[1723807057595,3.81747,2619.6,2619.0,6.14114]
[1723807057870,3.81747,2619.6,2619.1,0.614114]
[1723807059629,3.81746,2619.6,2619.1,0.614114]
[1723807061431,3.81746,2619.6,2619.1,20.404114]
[1723807061635,3.81683,2620.0,2619.4,2.4855]
[1723807061831,3.81701,2619.9,2619.4,2.4855]
[1723807063215,3.81683,2620.0,2619.4,2.4855]
[1723807063421,3.81683,2620.0,2619.4,2.98600948]
[1723807063846,3.81683,2620.0,2619.4,6.80364948]
[1723807070541,3.81683,2620.0,2619.4,2.98600948]
[1723807070783,3.81683,2620.0,2619.4,2.4855]
[1723807070981,7.6337,2620.0,2619.4,2.4855]
[1723807071192,3.81683,2620.0,2619.4,2.4855]
[1723807071539,3.81683,2620.0,2619.4,3.81759]
[1723807071804,3.81683,2620.0,2619.3,3.8178]
[1723807071805,3.81683,2620.0,2619.5,2.2924]
[1723807071936,0.45784087,2619.9,2619.5,2.2924]
[1723807072297,3.81737,2619.6,2619.2,2.3235]
[1723807072440,3.81753,2619.5,2619.2,2.3235]
[1723807074685,3.81766,2619.4,2619.2,2.3235]
[1723807074890,3.81781,2619.3,2619.2,2.3235]
[1723807076493,8.016943,2619.5,2619.2,2.3235]
[1723807076790,4.199283,2619.5,2619.2,2.3235]
[1723807076991,3.81753,2619.5,2619.2,2.3235]
[1723807077138,7.63515,2619.5,2619.2,2.3235]
[1723807077337,3.81753,2619.5,2619.2,2.3235]
[1723807077588,3.81733,2619.7,2619.2,2.3235]
[1723807078675,7.6341,2619.9,2619.2,6.14137]
[1723807079023,3.81708,2619.8,2619.2,2.937658]
[1723807079163,3.81708,2619.8,2619.1,3.81809]
[1723807079365,3.81708,2619.8,2619.2,22.1411]
[1723807080283,3.81724,2619.7,2619.2,22.1411]
[1723807081264,3.81753,2619.5,2619.2,22.1411]
[1723807083759,2.753704,2619.9,2619.4,2.4112]
[1723807083760,3.81701,2619.9,2619.4,2.4112]
[1723807083959,3.81701,2619.9,2619.6,2.4112]
[1723807084592,7.63351,2620.1,2619.6,2.4112]
[1723807084767,3.81674,2620.1,2619.6,2.4112]
[1723807084972,3.81687,2620.0,2619.6,2.4112]
[1723807085372,4.580231,2620.0,2619.6,2.4112]
[1723807086674,3.81694,2619.9,2619.6,2.4112]
[1723807087607,3.81674,2620.1,2619.6,2.4112]
[1723807089910,3.8168,2620.0,2619.6,2.4112]
[1723807097424,7.63368,2620.0,2619.6,2.4112]
[1723807097747,3.81695,2619.9,2619.6,2.4112]
[1723807098019,4.580258,2620.0,2619.6,2.4112]
[1723807098020,8.397168,2620.0,2619.6,2.4112]
[1723807098208,3.81694,2619.9,2619.6,2.4112]
[1723807100337,3.81694,2619.9,2619.5,19.79]
[1723807100338,3.81723,2619.7,2619.5,19.79]
[1723807100528,3.81737,2619.6,2619.5,19.79]
[1723807100892,7.63474,2619.6,2619.5,19.79]
[1723807103605,3.81766,2619.4,2619.3,2.4769]
[1723807103797,4.581163,2619.4,2619.3,2.4769]
[1723807104411,4.581163,2619.4,2618.8,2.3991]
[1723807104698,7.63482,2619.6,2619.0,2.2686]
[1723807104922,3.81737,2619.6,2619.0,2.2686]
[1723807105092,3.81723,2619.7,2619.2,2.2686]
[1723807106815,3.81708,2619.8,2619.2,3.81793]
[1723807107137,3.81708,2619.8,2619.4,2.3397]
[1723807108102,7.63399,2619.9,2619.4,2.3397]
[1723807108511,3.81681,2620.0,2619.5,2.4031]
[1723807108718,3.81672,2620.1,2619.6,2.4031]
[1723807109109,3.81681,2620.0,2619.6,2.4031]
[1723807114417,3.81694,2619.9,2619.6,2.4031]
[1723807114730,3.81723,2619.7,2619.5,19.79]
[1723807116414,3.81737,2619.6,2619.5,19.79]
[1723807116635,2.40269909,2619.8,2619.1,2.4557]
[1723807116890,3.81795,2619.2,2619.1,2.4557]
[1723807117503,3.81842,2618.9,2618.5,2.3991]
[1723807117804,3.81871,2618.7,2618.5,2.3991]
[1723807118156,0.77133679,2618.7,2618.0,2.419]
[1723807118493,3.81928,2618.3,2618.0,2.419]
[1723807118669,3.81925,2618.4,2618.0,2.419]
[1723807119027,3.81925,2618.4,2618.0,2.6609]
[1723807119283,7.63789,2618.6,2618.0,2.6609]
[1723807119632,3.81892,2618.6,2618.0,6.48051]
[1723807119864,7.63717,2618.8,2618.1,6.720381]
[1723807120071,3.81855,2618.8,2618.1,2.900851]
[1723807120249,3.81886,2618.6,2618.1,2.900851]
[1723807120470,7.63779,2618.6,2618.1,2.900851]
[1723807120846,3.81886,2618.6,2618.1,2.900851]
[1723807122062,3.81906,2618.5,2618.1,2.900851]
[1723807122277,3.81941,2618.2,2617.6,2.3857]
[1723807122760,3.81965,2618.1,2617.6,2.3857]
[1723807122960,3.81941,2618.2,2617.6,2.3857]
[1723807123954,7.63891,2618.2,2617.6,2.3857]
[1723807124175,3.81959,2618.1,2617.6,2.3857]
[1723807124582,3.81959,2618.1,2617.6,3.006305]
[1723807125412,3.81935,2618.3,2617.6,4.440805]
[1723807125613,3.81935,2618.3,2617.8,2.4141]
[1723807125786,6.14183,2619.1,2617.9,2.65551]
[1723807125993,3.81884,2618.6,2618.0,2.4141]
[1723807126383,3.819,2618.5,2618.1,0.623382]
[1723807126585,3.819,2618.5,2618.0,2.4141]
[1723807126830,3.81912,2618.4,2618.0,2.4141]
[1723807127992,3.819,2618.5,2618.0,2.4141]
[1723807128191,3.819,2618.5,2618.1,0.24141]
[1723807128575,7.63809,2618.5,2618.1,0.24141]
[1723807128824,3.81915,2618.4,2618.0,2.4141]
[1723807129371,3.81956,2618.1,2618.0,2.4141]
[1723807130875,3.81976,2618.0,2617.4,2.2512]
[1723807131076,3.81956,2618.1,2617.6,2.2512]
[1723807131929,7.63921,2618.1,2617.6,2.2512]
[1723807133038,3.81956,2618.1,2617.6,2.2512]
[1723807133327,3.81937,2618.3,2617.7,2.4497]
[1723807133657,7.63872,2618.3,2617.8,2.4497]
[1723807133833,3.81934,2618.3,2617.8,2.4497]
[1723807134043,3.81934,2618.3,2617.8,2.2997]
[1723807134246,3.81908,2618.5,2617.9,0.29675802]
[1723807134886,3.81908,2618.5,2617.9,4.11659802]
[1723807135623,3.81907,2618.5,2617.9,4.11659802]
[1723807136206,3.81907,2618.5,2617.9,4.11652802]
[1723807136538,0.39934711,2620.4,2617.9,4.11652802]
[1723807136539,3.8177,2619.4,2618.0,0.4116528]
[1723807136748,3.8177,2619.4,2618.3,3.81918]
[1723807136925,0.93206,2619.3,2618.4,2.3746]
[1723807137135,3.81855,2618.8,2618.4,2.3746]
[1723807137305,3.81887,2618.6,2618.4,2.3746]
[1723807137504,4.200757,2618.6,2618.4,2.3746]
[1723807137706,7.63782,2618.6,2618.4,2.3746]
[1723807137905,3.81898,2618.5,2618.4,2.3746]
[1723807138344,3.81887,2618.6,2618.4,2.3746]
[1723807138516,7.63779,2618.6,2618.4,2.3746]
[1723807138718,3.81887,2618.6,2618.4,2.3746]
[1723807138942,7.6378,2618.6,2618.4,2.3746]
[1723807139646,3.81887,2618.6,2618.4,2.3746]
[1723807139846,7.6378,2618.6,2618.4,2.3746]
[1723807140048,3.81887,2618.6,2618.4,2.3746]
[1723807140361,3.81874,2618.7,2618.4,2.3746]
[1723807140530,3.81884,2618.6,2618.4,2.3746]
[1723807141249,3.81869,2618.7,2618.4,2.3746]
[1723807141454,3.81864,2618.8,2618.4,2.3746]
[1723807141626,3.81848,2618.9,2618.4,2.3746]
[1723807143053,3.81856,2618.8,2618.4,2.3746]
[1723807144375,7.63719,2618.8,2618.4,2.3746]
[1723807144782,3.81856,2618.8,2618.4,2.3746]
[1723807146555,7.63717,2618.8,2618.4,2.3746]
[1723807147458,3.81869,2618.7,2618.4,2.3746]
[1723807148437,3.81884,2618.6,2618.4,2.3746]
[1723807148778,3.81906,2618.5,2618.2,22.1457]
[1723807148973,4.201026,2618.4,2618.2,22.1457]
[1723807149137,3.81927,2618.3,2618.2,22.1457]
[1723807150750,3.81912,2618.4,2618.2,22.1457]
[1723807153276,3.81927,2618.3,2618.2,22.1457]
[1723807153653,3.81927,2618.3,2618.2,2.3557]
[1723807157230,3.81943,2618.2,2617.8,2.4708]
[1723807157487,3.81959,2618.1,2617.8,22.2608]
[1723807157689,3.81972,2618.0,2617.8,22.2608]
[1723807159349,3.81959,2618.1,2617.8,22.2608]
[1723807159546,7.63926,2618.1,2617.8,22.2608]
[1723807160748,3.81959,2618.1,2617.8,22.2608]
[1723807160953,0.4200391,2618.8,2617.9,2.3859]
[1723807160954,3.81935,2618.3,2617.9,2.3859]
[1723807165790,3.81908,2618.5,2618.0,2.415]
[1723807166116,3.81894,2618.6,2618.1,2.3215]
[1723807166315,3.81857,2618.8,2618.2,2.3215]
[1723807166621,3.81857,2618.8,2618.2,3.81939]
[1723807166809,7.63719,2618.8,2618.3,2.3347]
[1723807167017,3.81857,2618.8,2618.3,2.3347]
[1723807167214,3.81839,2618.9,2618.4,2.2942]
[1723807167413,3.81836,2619.0,2618.4,2.2942]
[1723807167414,3.81854,2618.8,2618.4,2.2942]
[1723807170920,3.81854,2618.8,2618.4,3.287486]
[1723807171220,3.81854,2618.8,2618.4,2.2942]
[1723807171417,7.63719,2618.8,2618.4,2.2942]
[1723807171617,3.81869,2618.7,2618.4,2.2942]
[1723807173496,3.81855,2618.8,2618.4,2.2942]
[1723807176315,4.582246,2618.8,2618.4,2.2942]
[1723807179891,5.894246,2618.8,2618.4,2.2942]
[1723807180391,5.13055,2618.8,2618.4,2.2942]
[1723807181001,3.81855,2618.8,2618.4,2.2942]
[1723807183226,7.63691,2618.9,2618.4,2.2942]
[1723807183429,3.81841,2618.9,2618.5,2.2918]
[1723807183630,7.6369,2618.9,2618.5,2.2918]
[1723807184129,3.81855,2618.8,2618.5,2.2918]
[1723807184333,4.58224,2618.8,2618.5,2.2918]
[1723807184535,3.81869,2618.7,2618.5,2.2918]
[1723807184723,3.81883,2618.6,2618.5,2.2918]
[1723807185037,3.81908,2618.5,2618.3,22.2135]
[1723807186299,3.81908,2618.5,2618.3,2.4235]
[1723807188242,3.81898,2618.5,2618.3,2.4235]
[1723807190741,3.81884,2618.6,2618.3,2.4235]
[1723807191618,4.331836,2618.7,2618.3,2.4235]
[1723807192212,3.81849,2618.9,2618.3,19.79]
[1723807192412,3.81861,2618.8,2618.4,2.3275]
[1723807194413,5.13061,2618.8,2618.4,2.3275]
[1723807195248,3.81869,2618.7,2618.4,2.3275]
[1723807196443,5.13092,2618.6,2618.4,2.3275]
[1723807196642,3.81898,2618.5,2618.4,2.3275]
[1723807197546,3.81898,2618.5,2618.3,19.79]
[1723807197547,7.63824,2618.4,2618.3,19.79]
[1723807197850,8.783966,2618.4,2618.3,19.79]
[1723807198246,3.8193,2618.3,2618.0,2.3709]
[1723807199283,3.81912,2618.4,2618.0,2.3709]
[1723807201658,3.81893,2618.6,2617.9,19.79]
[1723807201939,7.63723,2618.8,2618.2,2.3754]
[1723807202139,3.81871,2618.7,2618.2,2.3754]
[1723807203264,3.81871,2618.7,2618.2,2.994883]
[1723807204254,3.81871,2618.7,2618.2,22.1654]
[1723807204463,1.312,2618.5,2618.2,22.1654]
[1723807204652,3.81925,2618.4,2618.2,22.1654]
[1723807204860,3.81927,2618.3,2618.2,22.1654]
[1723807207248,3.81927,2618.3,2618.2,19.79]
[1723807210072,1.312,2618.5,2618.0,2.3018]
[1723807210285,3.81909,2618.5,2618.1,2.434]
[1723807210460,3.81876,2618.7,2618.2,2.8086]
[1723807210780,3.81893,2618.6,2618.2,2.8086]
[1723807211503,5.13047,2618.9,2618.3,2.3915]
[1723807211705,3.81873,2618.7,2618.3,2.3915]
[1723807211863,3.81873,2618.7,2618.3,3.050059]
[1723807212906,3.81865,2618.8,2618.4,2.4955]
[1723807213055,3.81869,2618.7,2618.4,2.4955]
[1723807213962,3.81865,2618.8,2618.4,2.4955]
[1723807214272,7.63731,2618.8,2618.4,2.4955]
[1723807214847,7.63727,2618.8,2618.4,2.4955]
[1723807215491,3.81862,2618.8,2618.4,2.4955]
[1723807216869,3.8187,2618.7,2618.4,2.4955]
[1723807217068,3.81862,2618.8,2618.4,2.4955]
[1723807218055,3.81856,2618.8,2618.4,2.4955]
[1723807218388,3.8184,2618.9,2618.4,2.4955]
[1723807219119,3.8181,2619.1,2618.6,3.81882]
[1723807219323,3.8181,2619.1,2618.6,2.425]
[1723807222204,7.63629,2619.1,2618.6,2.425]
[1723807222400,3.81827,2619.0,2618.6,2.3565]
[1723807222921,3.8184,2618.9,2618.6,2.3565]
[1723807223306,3.81865,2618.8,2618.6,2.3565]
[1723807224329,3.81868,2618.7,2618.6,2.3565]
[1723807225797,0.38184,2618.8,2618.6,2.3565]
[1723807226005,3.8184,2618.9,2618.6,2.3565]
[1723807227579,3.8182,2619.1,2618.6,2.3565]
[1723807229289,7.63639,2619.1,2618.6,2.3565]
[1723807229811,3.81819,2619.1,2618.6,2.3565]
[1723807230899,3.81819,2619.1,2618.6,22.1465]
[1723807231120,3.8183,2619.0,2618.6,22.1465]
[1723807232035,3.81819,2619.1,2618.6,22.1465]
[1723807232185,7.63641,2619.1,2618.7,0.08349402]
[1723807233187,7.63637,2619.1,2618.7,0.08349402]
[1723807233386,3.81818,2619.1,2618.8,2.3384]
[1723807233793,3.81818,2619.1,2618.9,0.08349402]
[1723807234121,2.99678993,2619.7,2618.9,1.63768342]
[1723807234436,4.88006648,2620.3,2619.4,6.17778]
[1723807234635,3.81673,2620.1,2619.6,2.3602]
[1723807234919,3.81696,2619.9,2619.6,2.3602]
[1723807235121,3.81696,2619.9,2619.7,0.08347084]
[1723807243011,3.81679,2620.0,2619.7,0.08347084]
[1723807245343,3.81623,2620.4,2619.7,0.08347084]
[1723807245344,3.81621,2620.4,2619.8,2.46594197]
[1723807245565,3.81621,2620.4,2619.9,2.43653095]
[1723807245757,3.81616,2620.5,2619.9,2.51971388]
[1723807245931,3.81616,2620.5,2620.1,2.3602]
[1723807246341,3.81622,2620.4,2620.2,0.08287186]
[1723807248087,6.296,2621.0,2620.2,0.08287186]
[1723807248088,3.81565,2620.8,2620.2,0.08287186]
[1723807248231,3.81543,2621.0,2620.3,2.4216]
[1723807248431,3.81575,2620.8,2620.3,2.4216]
[1723807248640,7.63151,2620.8,2620.4,0.0827594]
[1723807249570,3.81575,2620.8,2620.4,0.0827594]
[1723807249746,7.63149,2620.8,2620.4,0.0827594]
[1723807249943,3.81579,2620.7,2620.4,0.0827594]
[1723807251746,3.81574,2620.8,2620.4,0.0827594]
[1723807251747,7.63149,2620.8,2620.4,0.0827594]
[1723807251972,5.4808,2621.3,2620.5,2.3646]
[1723807251973,7.63089,2621.0,2620.5,2.3646]
[1723807252173,3.81548,2620.9,2620.5,2.3646]
[1723807252542,3.81544,2621.0,2620.6,0.08265357]
[1723807252737,3.8155,2620.9,2620.6,0.08265357]
[1723807257167,7.63109,2620.9,2620.7,2.4284]
[1723807257369,3.8155,2620.9,2620.7,2.4284]
[1723807257553,3.8155,2620.9,2620.8,0.07914268]
[1723807257741,3.8155,2620.9,2620.7,2.4284]
[1723807258143,3.8155,2620.9,2620.8,0.07914268]
[1723807258540,3.8155,2620.9,2620.7,2.4284]
[1723807258745,3.8155,2620.9,2620.8,0.07874917]